[Event "*** Titled Tuesday Blitz"]
[Site "Chess.com"]
[Date "2021.02.09"]
[Round "8"]
[White "mirochka"]
[Black "SilviusTiberius"]
[Result "0-1"]
[WhiteElo "2271"]
[BlackElo "2512"]
[TimeControl "180+1"]
[EndTime "11:28:57 PST"]
[Termination "SilviusTiberius won on time"]

1. e4 {[%clk 0:03:00.9]} 1... e5 {[%clk 0:02:58.9]} 2. Nf3 {[%clk 0:02:59.8]}
2... Nc6 {[%clk 0:02:59.5]} 3. d4 {[%clk 0:02:59.8]} 3... exd4 {[%clk
0:02:59.6]} 4. c3 {[%clk 0:03:00.4]} 4... Nf6 {[%clk 0:02:55.2]} 5. e5 {[%clk
0:02:59.9]} 5... Nd5 {[%clk 0:02:54.5]} 6. cxd4 {[%clk 0:02:53.7]} 6... Bb4+
{[%clk 0:02:53.5]} 7. Bd2 {[%clk 0:02:53.1]} 7... Bxd2+ {[%clk 0:02:51.8]} 8.
Qxd2 {[%clk 0:02:54]} 8... d6 {[%clk 0:02:51.8]} 9. Bc4 {[%clk 0:02:40.1]} 9...
dxe5 {[%clk 0:02:48.1]} 10. dxe5 {[%clk 0:02:37.7]} 10... Nb6 {[%clk 0:02:48.4]}
11. Bb3 {[%clk 0:02:26.4]} 11... Bg4 {[%clk 0:02:45.7]} 12. Qf4 {[%clk
0:02:19.4]} 12... Be6 {[%clk 0:02:39.4]} 13. Bxe6 {[%clk 0:02:09.7]} 13... fxe6
{[%clk 0:02:40.3]} 14. Nc3 {[%clk 0:02:09.5]} 14... Rf8 {[%clk 0:02:35]} 15. Qg4
{[%clk 0:02:04.9]} 15... Qe7 {[%clk 0:02:22.5]} 16. Rd1 {[%clk 0:02:02.3]} 16...
Rf5 {[%clk 0:02:16.8]} 17. O-O {[%clk 0:01:29]} 17... Rd8 {[%clk 0:02:12.3]} 18.
Rxd8+ {[%clk 0:01:27.4]} 18... Kxd8 {[%clk 0:02:12.5]} 19. Rd1+ {[%clk 0:01:19]}
19... Kc8 {[%clk 0:02:12.5]} 20. Nd4 {[%clk 0:01:10.1]} 20... Nxd4 {[%clk
0:02:08.6]} 21. Qxd4 {[%clk 0:01:09]} 21... Qd7 {[%clk 0:01:54.4]} 22. f4 {[%clk
0:00:54.4]} 22... Qxd4+ {[%clk 0:01:49.9]} 23. Rxd4 {[%clk 0:00:54.2]} 23... g5
{[%clk 0:01:50.6]} 24. g3 {[%clk 0:00:46.8]} 24... gxf4 {[%clk 0:01:51]} 25.
Rxf4 {[%clk 0:00:38.2]} 25... Rxe5 {[%clk 0:01:48.3]} 26. Rf8+ {[%clk
0:00:36.4]} 26... Kd7 {[%clk 0:01:48.8]} 27. Rf7+ {[%clk 0:00:36.2]} 27... Kc6
{[%clk 0:01:49.3]} 28. Rxh7 {[%clk 0:00:35.9]} 28... Nc4 {[%clk 0:01:49.9]} 29.
b3 {[%clk 0:00:30.5]} 29... Nd6 {[%clk 0:01:42.8]} 30. h4 {[%clk 0:00:27.2]}
30... Re3 {[%clk 0:01:42.3]} 31. Na4 {[%clk 0:00:25.4]} 31... Rxg3+ {[%clk
0:01:42.2]} 32. Kh2 {[%clk 0:00:24.6]} 32... Nf5 {[%clk 0:01:42]} 33. h5 {[%clk
0:00:21.5]} 33... b5 {[%clk 0:01:40.8]} 34. Nb2 {[%clk 0:00:18.6]} 34... Re3
{[%clk 0:01:41]} 35. Nd1 {[%clk 0:00:18]} 35... Re2+ {[%clk 0:01:38.9]} 36. Kh3
{[%clk 0:00:18.1]} 36... b4 {[%clk 0:01:37.3]} 37. h6 {[%clk 0:00:13.5]} 37...
Rd2 {[%clk 0:01:37.1]} 38. Ne3 {[%clk 0:00:10]} 38... Nxe3 {[%clk 0:01:36]} 39.
Re7 {[%clk 0:00:10.1]} 39... Kd6 {[%clk 0:01:23.8]} 40. h7 {[%clk 0:00:09.7]}
40... Rd1 {[%clk 0:01:23.3]} 41. Re8 {[%clk 0:00:07.2]} 41... Rh1+ {[%clk
0:01:22.1]} 42. Kg3 {[%clk 0:00:07.7]} 42... Rxh7 {[%clk 0:01:22.6]} 43. Kf3
{[%clk 0:00:07.9]} 43... Nd5 {[%clk 0:01:21.7]} 44. Ra8 {[%clk 0:00:08]} 44...
Ke5 {[%clk 0:01:18]} 45. Rxa7 {[%clk 0:00:08]} 45... Rh3+ {[%clk 0:01:18.6]} 46.
Kg4 {[%clk 0:00:07.7]} 46... Rc3 {[%clk 0:01:16.9]} 47. Ra5 {[%clk 0:00:06.5]}
47... c5 {[%clk 0:01:16.4]} 48. Kh4 {[%clk 0:00:02.3]} 48... Nf6 {[%clk
0:01:15.9]} 49. Kg5 {[%clk 0:00:01.9]} 49... Rg3+ {[%clk 0:01:14.8]} 50. Kh4
{[%clk 0:00:01.5]} 50... Rg4+ {[%clk 0:01:14.5]} 51. Kh3 {[%clk 0:00:01.5]}
51... Kd4 {[%clk 0:01:11.4]} 0-1

[Event "*** Titled Tuesday Blitz"]
[Site "Chess.com"]
[Date "2021.02.09"]
[Round "8"]
[White "Artem_Koval"]
[Black "MuhittinBuker"]
[Result "1-0"]
[WhiteElo "2243"]
[BlackElo "2053"]
[TimeControl "180+1"]
[EndTime "11:29:01 PST"]
[Termination "Artem_Koval won by resignation"]

1. d4 {[%clk 0:03:00.9]} 1... Nf6 {[%clk 0:02:59]} 2. Bf4 {[%clk 0:03:00.6]}
2... e6 {[%clk 0:02:58.5]} 3. e3 {[%clk 0:03:00.6]} 3... d5 {[%clk 0:02:59]} 4.
Nd2 {[%clk 0:02:59.5]} 4... Bd6 {[%clk 0:02:59.5]} 5. Bxd6 {[%clk 0:02:58.3]}
5... cxd6 {[%clk 0:02:58.3]} 6. Ngf3 {[%clk 0:02:55.4]} 6... O-O {[%clk
0:02:58.4]} 7. Bd3 {[%clk 0:02:51.7]} 7... b6 {[%clk 0:02:58.8]} 8. O-O {[%clk
0:02:51.2]} 8... Ba6 {[%clk 0:02:58.2]} 9. Bxa6 {[%clk 0:02:41.8]} 9... Nxa6
{[%clk 0:02:57.5]} 10. Qe2 {[%clk 0:02:42.7]} 10... Nc7 {[%clk 0:02:56.3]} 11.
c3 {[%clk 0:02:31.4]} 11... Ne4 {[%clk 0:02:52.8]} 12. c4 {[%clk 0:01:44.3]}
12... Nxd2 {[%clk 0:02:27]} 13. Nxd2 {[%clk 0:01:42.3]} 13... dxc4 {[%clk
0:02:27.1]} 14. Qxc4 {[%clk 0:01:37.5]} 14... d5 {[%clk 0:02:25.2]} 15. Qd3
{[%clk 0:01:32.5]} 15... Nb5 {[%clk 0:02:20.2]} 16. Qxb5 {[%clk 0:01:30.6]}
16... Rc8 {[%clk 0:02:15.8]} 17. Rac1 {[%clk 0:01:29]} 17... Qd6 {[%clk
0:02:15.6]} 18. Nf3 {[%clk 0:01:23.6]} 18... h6 {[%clk 0:02:13.8]} 19. Ne5
{[%clk 0:01:23.1]} 19... Rfd8 {[%clk 0:02:02.8]} 20. Rc6 {[%clk 0:01:14.9]}
20... Rxc6 {[%clk 0:02:02.2]} 21. Qxc6 {[%clk 0:01:14.6]} 21... Qb4 {[%clk
0:02:01.2]} 22. Qc7 {[%clk 0:01:08]} 22... Rf8 {[%clk 0:02:01.1]} 23. Qc3 {[%clk
0:01:04.8]} 23... Qb5 {[%clk 0:01:58.7]} 24. Rc1 {[%clk 0:01:03.8]} 24... a5
{[%clk 0:01:57.4]} 25. h3 {[%clk 0:01:03.6]} 25... a4 {[%clk 0:01:52.7]} 26. b3
{[%clk 0:01:00.7]} 26... f6 {[%clk 0:01:36.7]} 27. Qc6 {[%clk 0:00:48.5]} 27...
Qxc6 {[%clk 0:01:33.7]} 28. Nxc6 {[%clk 0:00:48.3]} 28... Kf7 {[%clk 0:01:29.7]}
29. b4 {[%clk 0:00:45.6]} 29... b5 {[%clk 0:01:23.3]} 30. Na7 {[%clk 0:00:45.4]}
30... Rb8 {[%clk 0:01:20.3]} 31. Rc7+ {[%clk 0:00:45]} 31... Kg6 {[%clk
0:01:19.4]} 32. Rc5 {[%clk 0:00:42.7]} 32... Kf5 {[%clk 0:01:16.8]} 33. Nxb5
{[%clk 0:00:42.3]} 33... Ke4 {[%clk 0:01:14.4]} 34. a3 {[%clk 0:00:42]} 34...
Kd3 {[%clk 0:01:12.3]} 35. Nd6 {[%clk 0:00:40]} 35... g5 {[%clk 0:01:05.2]} 36.
b5 {[%clk 0:00:39.7]} 36... f5 {[%clk 0:00:59.4]} 37. Rc6 {[%clk 0:00:39.1]}
37... f4 {[%clk 0:00:55.4]} 38. b6 {[%clk 0:00:37.4]} 38... fxe3 {[%clk
0:00:55.5]} 39. fxe3 {[%clk 0:00:37.3]} 39... Kxe3 {[%clk 0:00:55.6]} 40. b7
{[%clk 0:00:37]} 40... Kxd4 {[%clk 0:00:54.9]} 41. Rc8 {[%clk 0:00:36.9]} 41...
Rxb7 {[%clk 0:00:55.1]} 42. Nxb7 {[%clk 0:00:37.8]} 42... e5 {[%clk 0:00:55.5]}
43. Ra8 {[%clk 0:00:35.8]} 43... Kd3 {[%clk 0:00:54.9]} 44. Rxa4 {[%clk
0:00:35.6]} 44... d4 {[%clk 0:00:55]} 45. Nc5+ {[%clk 0:00:21.4]} 45... Ke2
{[%clk 0:00:54.1]} 46. Rb4 {[%clk 0:00:20]} 46... d3 {[%clk 0:00:51.3]} 47. Nxd3
{[%clk 0:00:20.2]} 47... Kxd3 {[%clk 0:00:50.7]} 48. a4 {[%clk 0:00:20.5]} 48...
e4 {[%clk 0:00:51.1]} 49. a5 {[%clk 0:00:18.5]} 49... e3 {[%clk 0:00:51.4]} 50.
Rb3+ {[%clk 0:00:19.1]} 50... Kd2 {[%clk 0:00:51.4]} 51. Rxe3 {[%clk 0:00:20]}
51... Kxe3 {[%clk 0:00:51.3]} 52. a6 {[%clk 0:00:20.9]} 1-0

[Event "*** Titled Tuesday Blitz"]
[Site "Chess.com"]
[Date "2021.02.09"]
[Round "8"]
[White "bangchess21"]
[Black "TimofeevAr"]
[Result "0-1"]
[WhiteElo "2737"]
[BlackElo "2878"]
[TimeControl "180+1"]
[EndTime "11:29:03 PST"]
[Termination "TimofeevAr won by resignation"]

1. Nf3 {[%clk 0:03:00.9]} 1... Nf6 {[%clk 0:02:59.3]} 2. d4 {[%clk 0:03:00.2]}
2... g6 {[%clk 0:02:59.2]} 3. g3 {[%clk 0:03:00.5]} 3... Bg7 {[%clk 0:02:59.3]}
4. Bg2 {[%clk 0:03:01.1]} 4... O-O {[%clk 0:02:58.7]} 5. O-O {[%clk 0:03:01.8]}
5... d5 {[%clk 0:02:58.8]} 6. c4 {[%clk 0:03:02]} 6... dxc4 {[%clk 0:02:58.8]}
7. Na3 {[%clk 0:03:01.6]} 7... c6 {[%clk 0:02:58.5]} 8. Nxc4 {[%clk 0:02:59.7]}
8... Be6 {[%clk 0:02:58.7]} 9. Nce5 {[%clk 0:02:51.3]} 9... Bd5 {[%clk
0:02:58.3]} 10. Re1 {[%clk 0:02:43.6]} 10... a5 {[%clk 0:02:56.8]} 11. Qc2
{[%clk 0:02:43.3]} 11... Ne4 {[%clk 0:02:24.9]} 12. Nd3 {[%clk 0:02:31.4]} 12...
Nd6 {[%clk 0:02:21.5]} 13. Bf4 {[%clk 0:02:24.6]} 13... Nd7 {[%clk 0:02:19]} 14.
Bxd6 {[%clk 0:01:38.7]} 14... exd6 {[%clk 0:02:18.3]} 15. e4 {[%clk 0:01:39.3]}
15... Be6 {[%clk 0:02:18.9]} 16. h3 {[%clk 0:01:33.3]} 16... Nb6 {[%clk
0:02:03.5]} 17. Rad1 {[%clk 0:01:25]} 17... a4 {[%clk 0:02:01.4]} 18. Qb1 {[%clk
0:01:19]} 18... Bc4 {[%clk 0:01:59.2]} 19. Nf4 {[%clk 0:01:14.5]} 19... Re8
{[%clk 0:01:58.4]} 20. h4 {[%clk 0:01:12.5]} 20... Bh6 {[%clk 0:01:50.8]} 21.
Nh3 {[%clk 0:01:07.6]} 21... Be6 {[%clk 0:01:44.3]} 22. Kh2 {[%clk 0:01:02]}
22... Bg4 {[%clk 0:01:42.8]} 23. Qd3 {[%clk 0:01:00.9]} 23... d5 {[%clk
0:01:39.3]} 24. exd5 {[%clk 0:00:42.2]} 24... Rxe1 {[%clk 0:01:38.5]} 25. Rxe1
{[%clk 0:00:42.1]} 25... Nxd5 {[%clk 0:01:39]} 26. Nhg5 {[%clk 0:00:40.4]} 26...
Bf5 {[%clk 0:01:23.1]} 27. Qc4 {[%clk 0:00:39]} 27... Qd6 {[%clk 0:01:15.6]} 28.
Ne4 {[%clk 0:00:30.5]} 28... Bxe4 {[%clk 0:01:09.8]} 29. Rxe4 {[%clk 0:00:30.3]}
29... Bg7 {[%clk 0:01:06.2]} 30. Ne5 {[%clk 0:00:24.7]} 30... Bf6 {[%clk
0:01:01.2]} 31. a3 {[%clk 0:00:23.2]} 31... Ra5 {[%clk 0:00:43.6]} 32. Qe2
{[%clk 0:00:22.1]} 32... Ra8 {[%clk 0:00:32.3]} 33. h5 {[%clk 0:00:20.6]} 33...
Bxe5 {[%clk 0:00:30.2]} 34. Rxe5 {[%clk 0:00:20.1]} 34... Nf6 {[%clk 0:00:27.3]}
35. hxg6 {[%clk 0:00:19.5]} 35... hxg6 {[%clk 0:00:27]} 36. d5 {[%clk
0:00:13.2]} 36... Qxe5 {[%clk 0:00:24]} 0-1

[Event "*** Titled Tuesday Blitz"]
[Site "Chess.com"]
[Date "2021.02.09"]
[Round "8"]
[White "Nils_03"]
[Black "HajiyevKanan"]
[Result "0-1"]
[WhiteElo "2345"]
[BlackElo "2490"]
[TimeControl "180+1"]
[EndTime "11:29:04 PST"]
[Termination "HajiyevKanan won on time"]

1. e4 {[%clk 0:03:00.9]} 1... c6 {[%clk 0:02:56.8]} 2. Nf3 {[%clk 0:02:59.7]}
2... d5 {[%clk 0:02:57.7]} 3. Nc3 {[%clk 0:03:00.1]} 3... a6 {[%clk 0:02:57.8]}
4. d4 {[%clk 0:02:58.6]} 4... Bg4 {[%clk 0:02:57.8]} 5. h3 {[%clk 0:02:53.6]}
5... Bh5 {[%clk 0:02:57.2]} 6. Be2 {[%clk 0:02:49.2]} 6... e6 {[%clk 0:02:57.2]}
7. O-O {[%clk 0:02:47.9]} 7... Nf6 {[%clk 0:02:55.9]} 8. e5 {[%clk 0:02:47.4]}
8... Nfd7 {[%clk 0:02:56]} 9. Ne1 {[%clk 0:02:37.3]} 9... Bg6 {[%clk 0:02:55.6]}
10. f4 {[%clk 0:02:26.7]} 10... c5 {[%clk 0:02:55.9]} 11. dxc5 {[%clk
0:02:26.2]} 11... Bxc5+ {[%clk 0:02:56.4]} 12. Kh1 {[%clk 0:02:26.5]} 12... Nc6
{[%clk 0:02:56.5]} 13. Nd3 {[%clk 0:02:24.8]} 13... Ba7 {[%clk 0:02:52.6]} 14.
Bg4 {[%clk 0:02:13.5]} 14... h5 {[%clk 0:02:49.8]} 15. Bf3 {[%clk 0:02:08.7]}
15... Qh4 {[%clk 0:02:45.7]} 16. Bd2 {[%clk 0:02:05]} 16... Bxd3 {[%clk
0:02:40.8]} 17. cxd3 {[%clk 0:02:04]} 17... g6 {[%clk 0:02:41.2]} 18. Ne2 {[%clk
0:01:50.3]} 18... O-O {[%clk 0:02:29.7]} 19. Be1 {[%clk 0:01:41.7]} 19... Qe7
{[%clk 0:02:29.7]} 20. g4 {[%clk 0:01:35.9]} 20... hxg4 {[%clk 0:02:28.6]} 21.
hxg4 {[%clk 0:01:36.8]} 21... Kg7 {[%clk 0:02:29.2]} 22. Kg2 {[%clk 0:01:36.2]}
22... Rh8 {[%clk 0:02:29.5]} 23. Bg3 {[%clk 0:01:35.9]} 23... Nd4 {[%clk
0:02:28.9]} 24. Nxd4 {[%clk 0:01:33.6]} 24... Bxd4 {[%clk 0:02:29.5]} 25. Qe2
{[%clk 0:01:31.6]} 25... Rac8 {[%clk 0:02:26.8]} 26. Rh1 {[%clk 0:01:29.1]}
26... Qb4 {[%clk 0:02:17.2]} 27. f5 {[%clk 0:01:10.7]} 27... Rxh1 {[%clk
0:01:56.8]} 28. Rxh1 {[%clk 0:01:02.6]} 28... Qxb2 {[%clk 0:01:53.3]} 29. Qxb2
{[%clk 0:00:36.1]} 29... Bxb2 {[%clk 0:01:54.2]} 30. Rb1 {[%clk 0:00:36.1]}
30... Rc2+ {[%clk 0:01:53.1]} 31. Kh3 {[%clk 0:00:27.1]} 31... b5 {[%clk
0:01:52.9]} 32. Re1 {[%clk 0:00:14.6]} 32... Bc3 {[%clk 0:01:52.8]} 33. Re2
{[%clk 0:00:11.3]} 33... Rxe2 {[%clk 0:01:51.6]} 34. Bxe2 {[%clk 0:00:12.2]}
34... Bxe5 {[%clk 0:01:51.4]} 35. Be1 {[%clk 0:00:09.9]} 35... gxf5 {[%clk
0:01:23.2]} 36. gxf5 {[%clk 0:00:10.8]} 36... exf5 {[%clk 0:01:23.8]} 37. Kg2
{[%clk 0:00:09.2]} 37... Kf6 {[%clk 0:01:23.1]} 38. Bf3 {[%clk 0:00:07.6]} 38...
Ke6 {[%clk 0:01:23.1]} 39. Kf1 {[%clk 0:00:08]} 39... f4 {[%clk 0:01:21]} 40.
Ke2 {[%clk 0:00:08.3]} 40... Bd4 {[%clk 0:01:20.7]} 41. Bg4+ {[%clk 0:00:08.3]}
41... f5 {[%clk 0:01:21.1]} 42. Bh5 {[%clk 0:00:08.8]} 42... Be3 {[%clk
0:01:20.7]} 43. Bc3 {[%clk 0:00:07.9]} 43... d4 {[%clk 0:01:20.8]} 44. Bb4
{[%clk 0:00:07.7]} 44... Ne5 {[%clk 0:01:21.3]} 45. Be8 {[%clk 0:00:06.2]} 45...
f3+ {[%clk 0:01:21.4]} 46. Kf1 {[%clk 0:00:05.9]} 46... Nxd3 {[%clk 0:01:22.3]}
47. Bh5 {[%clk 0:00:03.6]} 47... f2 {[%clk 0:01:20]} 48. Bf8 {[%clk 0:00:02.7]}
48... Nf4 {[%clk 0:01:15.8]} 49. Bd1 {[%clk 0:00:02.7]} 49... d3 {[%clk
0:01:13.2]} 50. Bb3+ {[%clk 0:00:02.8]} 50... Kd7 {[%clk 0:01:10.5]} 51. Bb4
{[%clk 0:00:01.9]} 51... Ne2 {[%clk 0:01:05.6]} 0-1

[Event "*** Titled Tuesday Blitz"]
[Site "Chess.com"]
[Date "2021.02.09"]
[Round "8"]
[White "markowskitomasz"]
[Black "NoGalloNoParty"]
[Result "1-0"]
[WhiteElo "2592"]
[BlackElo "2352"]
[TimeControl "180+1"]
[EndTime "11:29:04 PST"]
[Termination "markowskitomasz won on time"]

1. c4 {[%clk 0:02:58.8]} 1... g6 {[%clk 0:02:58.9]} 2. d4 {[%clk 0:02:56]} 2...
Nf6 {[%clk 0:02:58.2]} 3. Nc3 {[%clk 0:02:55.2]} 3... d5 {[%clk 0:02:57.8]} 4.
cxd5 {[%clk 0:02:53.9]} 4... Nxd5 {[%clk 0:02:58.7]} 5. g3 {[%clk 0:02:53.9]}
5... Bg7 {[%clk 0:02:56.8]} 6. Bg2 {[%clk 0:02:51.4]} 6... c6 {[%clk 0:02:53.2]}
7. Nf3 {[%clk 0:02:46.2]} 7... O-O {[%clk 0:02:52.2]} 8. O-O {[%clk 0:02:45.9]}
8... Nd7 {[%clk 0:02:37.2]} 9. e4 {[%clk 0:02:36.6]} 9... Nxc3 {[%clk
0:02:35.9]} 10. bxc3 {[%clk 0:02:37.5]} 10... Nf6 {[%clk 0:02:35.1]} 11. Qd3
{[%clk 0:02:32.6]} 11... c5 {[%clk 0:02:24.8]} 12. Rd1 {[%clk 0:02:28]} 12...
cxd4 {[%clk 0:02:06.8]} 13. cxd4 {[%clk 0:02:25.6]} 13... b6 {[%clk 0:02:06.1]}
14. d5 {[%clk 0:02:15.2]} 14... Nxe4 {[%clk 0:01:48]} 15. Nd4 {[%clk 0:02:13.6]}
15... Nc5 {[%clk 0:01:40.5]} 16. Qe3 {[%clk 0:02:00.6]} 16... Bb7 {[%clk
0:01:38.6]} 17. Bb2 {[%clk 0:01:46.2]} 17... Na4 {[%clk 0:01:13.5]} 18. Ba3
{[%clk 0:01:44.1]} 18... Re8 {[%clk 0:00:47.2]} 19. Nc6 {[%clk 0:01:41.4]} 19...
Qd7 {[%clk 0:00:47.1]} 20. Rac1 {[%clk 0:01:37.5]} 20... Bf6 {[%clk 0:00:34.6]}
21. Qb3 {[%clk 0:01:14.4]} 21... Nc5 {[%clk 0:00:30.9]} 22. Bxc5 {[%clk
0:01:10.3]} 22... bxc5 {[%clk 0:00:30.8]} 23. Rxc5 {[%clk 0:01:10.8]} 23... Rac8
{[%clk 0:00:28.7]} 24. h4 {[%clk 0:01:03.5]} 24... Qd6 {[%clk 0:00:19.3]} 25.
Rcc1 {[%clk 0:00:59.3]} 25... Ba8 {[%clk 0:00:18]} 26. Nxa7 {[%clk 0:00:57]}
26... Rxc1 {[%clk 0:00:17.1]} 27. Rxc1 {[%clk 0:00:56.7]} 27... Rb8 {[%clk
0:00:16.3]} 28. Qxb8+ {[%clk 0:00:44.8]} 28... Qxb8 {[%clk 0:00:15.4]} 29. Rc8+
{[%clk 0:00:45.7]} 29... Qxc8 {[%clk 0:00:15.3]} 30. Nxc8 {[%clk 0:00:46.6]}
30... Kf8 {[%clk 0:00:12.7]} 31. a4 {[%clk 0:00:33.8]} 31... Bd4 {[%clk
0:00:11.9]} 32. d6 {[%clk 0:00:25]} 32... Bxg2 {[%clk 0:00:10.5]} 33. d7 {[%clk
0:00:18.5]} 1-0

[Event "*** Titled Tuesday Blitz"]
[Site "Chess.com"]
[Date "2021.02.09"]
[Round "8"]
[White "oykuince"]
[Black "CraiggoryC"]
[Result "1-0"]
[WhiteElo "1988"]
[BlackElo "2162"]
[TimeControl "180+1"]
[EndTime "11:29:05 PST"]
[Termination "oykuince won on time"]

1. e4 {[%clk 0:02:57.4]} 1... e6 {[%clk 0:03:00.3]} 2. d4 {[%clk 0:02:56.8]}
2... d5 {[%clk 0:03:00.9]} 3. Nd2 {[%clk 0:02:56.1]} 3... Be7 {[%clk 0:03:00.3]}
4. e5 {[%clk 0:02:45.2]} 4... c5 {[%clk 0:02:59.8]} 5. c3 {[%clk 0:02:44.1]}
5... Nc6 {[%clk 0:02:59.6]} 6. Qg4 {[%clk 0:02:39.1]} 6... Kf8 {[%clk
0:02:54.5]} 7. Bd3 {[%clk 0:02:35.6]} 7... f6 {[%clk 0:02:43.1]} 8. Ngf3 {[%clk
0:02:16.4]} 8... cxd4 {[%clk 0:02:40.8]} 9. cxd4 {[%clk 0:02:15.4]} 9... Nh6
{[%clk 0:02:29.4]} 10. Qf4 {[%clk 0:02:08]} 10... Kg8 {[%clk 0:02:12.7]} 11. O-O
{[%clk 0:02:00]} 11... Nf7 {[%clk 0:02:00.4]} 12. exf6 {[%clk 0:01:52.8]} 12...
Bxf6 {[%clk 0:01:59]} 13. Nb3 {[%clk 0:01:51.3]} 13... Qd6 {[%clk 0:01:37.2]}
14. Qe3 {[%clk 0:01:29]} 14... b6 {[%clk 0:01:25.9]} 15. a4 {[%clk 0:01:08.7]}
15... a5 {[%clk 0:01:19.6]} 16. Bd2 {[%clk 0:01:03.7]} 16... Bd7 {[%clk
0:00:50.3]} 17. Rfe1 {[%clk 0:00:46.9]} 17... g6 {[%clk 0:00:48.6]} 18. Bb5
{[%clk 0:00:29.2]} 18... Kg7 {[%clk 0:00:42.9]} 19. Bxc6 {[%clk 0:00:20.5]}
19... Qxc6 {[%clk 0:00:34.4]} 20. Ne5 {[%clk 0:00:20.7]} 20... Bxe5 {[%clk
0:00:21]} 21. dxe5 {[%clk 0:00:20.5]} 21... Rhf8 {[%clk 0:00:12]} 22. Nd4 {[%clk
0:00:20.2]} 22... Qb7 {[%clk 0:00:07.5]} 23. Rac1 {[%clk 0:00:15.8]} 23... Rac8
{[%clk 0:00:07.4]} 24. Bc3 {[%clk 0:00:14.1]} 24... Rc4 {[%clk 0:00:06.9]} 25.
f4 {[%clk 0:00:09.3]} 25... Rxa4 {[%clk 0:00:03.8]} 26. g4 {[%clk 0:00:06.9]}
26... Rc8 {[%clk 0:00:03.5]} 27. f5 {[%clk 0:00:06.1]} 27... exf5 {[%clk
0:00:03.5]} 28. gxf5 {[%clk 0:00:06.1]} 28... Bxf5 {[%clk 0:00:02.8]} 29. Nxf5+
{[%clk 0:00:05.8]} 29... gxf5 {[%clk 0:00:03.7]} 30. e6+ {[%clk 0:00:06.2]} 1-0

[Event "*** Titled Tuesday Blitz"]
[Site "Chess.com"]
[Date "2021.02.09"]
[Round "8"]
[White "MatthewG-p4p"]
[Black "FairChess_on_YouTube"]
[Result "1-0"]
[WhiteElo "2838"]
[BlackElo "2933"]
[TimeControl "180+1"]
[EndTime "11:29:13 PST"]
[Termination "MatthewG-p4p won by resignation"]

1. d4 {[%clk 0:02:59.3]} 1... d5 {[%clk 0:02:59.4]} 2. c4 {[%clk 0:02:59]} 2...
c6 {[%clk 0:02:59.9]} 3. Nf3 {[%clk 0:02:57.7]} 3... Nf6 {[%clk 0:02:59.9]} 4.
Nc3 {[%clk 0:02:57.3]} 4... a6 {[%clk 0:03:00.3]} 5. e3 {[%clk 0:02:54.3]} 5...
Bf5 {[%clk 0:02:58.9]} 6. Qb3 {[%clk 0:02:22.5]} 6... b5 {[%clk 0:02:55.9]} 7.
c5 {[%clk 0:02:15]} 7... a5 {[%clk 0:02:54.5]} 8. Ne5 {[%clk 0:02:15.7]} 8... a4
{[%clk 0:02:51.8]} 9. Qd1 {[%clk 0:02:16]} 9... h5 {[%clk 0:02:43.6]} 10. f3
{[%clk 0:01:48]} 10... e6 {[%clk 0:02:29]} 11. Be2 {[%clk 0:01:32.2]} 11... Be7
{[%clk 0:02:24.9]} 12. O-O {[%clk 0:01:31.6]} 12... O-O {[%clk 0:02:24.1]} 13.
Bd2 {[%clk 0:01:29.7]} 13... Nfd7 {[%clk 0:02:21.7]} 14. f4 {[%clk 0:01:27.2]}
14... g6 {[%clk 0:02:08.3]} 15. h3 {[%clk 0:01:18]} 15... h4 {[%clk 0:02:05.5]}
16. Nf3 {[%clk 0:01:17.4]} 16... Na6 {[%clk 0:01:59.1]} 17. Be1 {[%clk
0:01:08.2]} 17... Nb4 {[%clk 0:01:50.6]} 18. Rc1 {[%clk 0:01:07.3]} 18... a3
{[%clk 0:01:47.3]} 19. bxa3 {[%clk 0:00:46.8]} 19... Rxa3 {[%clk 0:01:46.5]} 20.
Nxb5 {[%clk 0:00:47.2]} 20... Rxe3 {[%clk 0:01:40.3]} 21. Bxb4 {[%clk
0:00:44.2]} 21... cxb5 {[%clk 0:01:40.3]} 22. Qd2 {[%clk 0:00:43.5]} 22... Re4
{[%clk 0:01:37.3]} 23. Bxb5 {[%clk 0:00:43.2]} 23... Nf6 {[%clk 0:01:33]} 24. a4
{[%clk 0:00:41.4]} 24... Nh5 {[%clk 0:01:30.2]} 25. Ne5 {[%clk 0:00:39.4]} 25...
Qc7 {[%clk 0:01:05.1]} 26. Ba5 {[%clk 0:00:33]} 26... Qc8 {[%clk 0:00:57.4]} 27.
c6 {[%clk 0:00:27.4]} 27... Bd6 {[%clk 0:00:44.2]} 28. c7 {[%clk 0:00:23.9]}
28... f6 {[%clk 0:00:43.9]} 29. Bd7 {[%clk 0:00:22.1]} 29... Qa6 {[%clk
0:00:34.2]} 30. c8=Q {[%clk 0:00:16.6]} 30... Rxc8 {[%clk 0:00:34.6]} 31. Rxc8+
{[%clk 0:00:15.8]} 31... Kg7 {[%clk 0:00:34.7]} 32. Rc6 {[%clk 0:00:14.2]} 32...
Qe2 {[%clk 0:00:21.9]} 33. Qxe2 {[%clk 0:00:11.6]} 33... Rxe2 {[%clk 0:00:22.8]}
34. Rxd6 {[%clk 0:00:12.1]} 34... fxe5 {[%clk 0:00:23.4]} 35. dxe5 {[%clk
0:00:07.2]} 35... Ng3 {[%clk 0:00:21.9]} 36. Rf2 {[%clk 0:00:07.1]} 36... Re4
{[%clk 0:00:18.4]} 37. Rxe6 {[%clk 0:00:07.3]} 37... Rxa4 {[%clk 0:00:17.6]} 38.
Bxa4 {[%clk 0:00:06.8]} 1-0